bitfinex-derivatives/quotes_ETHF0:USTF0_20240925
["timestamp","ask_amount","ask_price","bid_price","bid_amount"]
[1727273417283,0.38083,2626.0,2625.6,0.38088]
[1727273417486,0.38085,2625.9,2625.5,3.5788]
[1727273417785,0.38085,2625.9,2625.5,3.95969]
[1727273418095,0.38086,2625.8,2625.5,3.5788]
[1727273418784,0.38086,2625.8,2625.5,3.95969]
[1727273419087,0.38088,2625.6,2625.5,3.5788]
[1727273419291,1.33309,2625.6,2625.5,0.371]
[1727273419508,0.38088,2625.6,2625.5,0.371]
[1727273420201,1.33309,2625.6,2625.5,0.371]
[1727273421797,0.38088,2625.6,2625.5,0.371]
[1727273422602,2.94704531,2625.7,2625.1,0.371]
[1727273422787,2.94704531,2625.7,2624.6,1.97174124]
[1727273422788,0.381,2624.8,2624.5,1.36277062]
[1727273422991,0.381,2624.8,2624.2,1.97174124]
[1727273422992,3.88261,2624.5,2624.2,0.98587062]
[1727273423288,0.3811,2624.1,2624.0,0.397]
[1727273423497,2.93,2624.3,2623.7,0.371]
[1727273423498,1.99485531,2624.2,2623.7,0.371]
[1727273423688,1.99485531,2624.3,2623.7,3.9758]
[1727273423886,2.37591531,2624.4,2623.9,0.38112]
[1727273424087,0.38107,2624.3,2623.9,0.38112]
[1727273424285,1.99485531,2624.3,2623.7,3.9758]
[1727273424492,1.99485531,2624.6,2624.0,3.2078]
[1727273424795,0.38104,2624.5,2624.1,0.3684]
[1727273424992,2.37765531,2624.7,2624.1,0.3684]
[1727273425198,8.13265531,2624.9,2624.2,7.88746509]
[1727273425386,0.38103,2624.6,2624.3,0.7516]
[1727273426005,0.38101,2624.8,2624.3,0.7516]
[1727273426189,0.38101,2624.7,2624.3,1.13266]
[1727273426384,0.38103,2624.6,2624.3,0.7516]
[1727273426690,8.13265531,2624.9,2624.3,0.7516]
[1727273426896,0.38103,2624.6,2624.3,0.7516]
[1727273429197,0.38105,2624.5,2624.3,0.7516]
[1727273429396,4.16028,2624.9,2624.3,0.7516]
[1727273429592,0.38104,2624.6,2624.3,0.7516]
[1727273429907,0.38104,2624.5,2624.3,0.7516]
[1727273430216,0.38105,2624.4,2624.3,0.7516]
[1727273431302,2.93,2624.5,2624.3,0.7516]
[1727273431505,3.31104,2624.5,2624.3,0.7516]
[1727273431688,0.3958,2624.7,2624.3,0.7516]
[1727273431689,0.38102,2624.6,2624.3,0.7516]
[1727273432202,2.93,2624.9,2624.3,0.7516]
[1727273432390,2.93,2624.9,2624.4,0.38105]
[1727273432592,0.38101,2624.7,2624.3,4.34046]
[1727273432897,2.93,2624.9,2624.3,4.34046]
[1727273433599,0.38102,2624.7,2624.3,4.34046]
[1727273434104,0.38104,2624.6,2624.3,3.9594]
[1727273434302,0.38102,2624.7,2624.3,4.34047]
[1727273434504,3.88248,2624.9,2624.4,0.38105]
[1727273434505,0.381,2624.8,2624.4,0.38105]
[1727273435202,0.38101,2624.7,2624.4,0.38105]
[1727273435591,0.38102,2624.6,2624.3,4.34046]
[1727273436504,0.38104,2624.5,2624.3,4.34046]
[1727273436895,0.38104,2624.5,2624.4,3.8104]
[1727273437202,0.9525,2624.8,2624.4,3.8104]
[1727273437203,0.38103,2624.6,2624.4,3.8104]
[1727273437393,0.95236,2625.2,2624.7,0.38101]
[1727273437595,0.95236,2625.2,2624.8,1.1379]
[1727273437596,0.38098,2625.0,2624.8,1.1379]
[1727273437999,3.88229,2625.4,2624.9,3.8096]
[1727273438194,4.54401,2625.6,2624.8,1.1379]
[1727273438405,4.54401,2625.6,2625.0,3.2078]
[1727273438597,0.38095,2625.1,2625.0,3.2078]
[1727273438897,0.38095,2625.1,2624.8,1.1379]
[1727273438898,0.38096,2625.1,2624.8,1.1379]
[1727273439097,0.95231,2625.3,2624.8,1.1379]
[1727273439502,0.38094,2625.2,2624.8,1.51889]
[1727273439700,0.38094,2625.2,2624.9,0.38097]
[1727273439900,0.38094,2625.2,2624.8,4.72669]
[1727273440095,2.93,2625.4,2624.8,4.72669]
[1727273440296,0.38093,2625.3,2624.9,0.38098]
[1727273440498,2.93,2625.4,2624.8,4.72669]
[1727273440499,0.38094,2625.2,2624.8,4.72669]
[1727273440901,2.93,2625.4,2624.8,4.72669]
[1727273441192,2.93,2625.1,2624.8,4.3457]
[1727273441397,0.38098,2624.9,2624.8,4.3457]
[1727273441601,4.26344,2624.9,2624.8,3.6003]
[1727273442002,4.26344,2624.9,2624.8,3.2078]
[1727273442003,8.07304,2624.9,2624.8,3.2078]
[1727273442608,9.0255,2624.9,2624.8,3.2078]
[1727273443001,0.38107,2624.3,2624.2,3.6121]
[1727273443400,0.38107,2624.3,2624.2,0.4043]
[1727273443401,3.31107,2624.3,2624.2,0.4043]
[1727273443615,4.26375,2624.3,2624.2,0.4043]
[1727273443809,3.31107,2624.3,2624.2,0.4043]
[1727273444022,4.26375,2624.3,2624.2,0.4043]
[1727273444402,0.38114,2623.9,2623.7,0.7671]
[1727273444602,0.95271,2624.2,2623.7,0.7671]
[1727273444905,6.1378,2624.3,2623.7,0.7671]
[1727273444906,0.38114,2623.8,2623.7,0.7671]
[1727273445113,0.38116,2623.7,2623.6,0.3844]
[1727273445301,0.38115,2623.8,2623.6,0.3844]
[1727273445696,0.38116,2623.7,2623.6,0.3844]
[1727273446309,0.38115,2623.8,2623.6,0.3844]
[1727273447406,0.38116,2623.7,2623.6,0.3844]
[1727273448512,0.38115,2623.8,2623.6,0.3844]
[1727273448718,0.38116,2623.7,2623.6,0.3844]
[1727273449009,0.38115,2623.8,2623.6,0.3844]
[1727273449514,0.38116,2623.7,2623.6,0.3844]
[1727273449911,0.38115,2623.8,2623.6,0.3844]
[1727273450304,0.4014,2623.9,2623.6,0.3844]
[1727273450509,0.38114,2623.8,2623.6,0.3844]
[1727273450709,0.38116,2623.7,2623.6,0.3844]
[1727273454810,1.33406,2623.7,2623.6,0.3844]
[1727273455112,4.26406,2623.7,2623.6,0.3844]
[1727273455299,1.3341,2623.6,2623.5,3.2078]
[1727273455717,0.38123,2623.2,2623.1,3.5867]
[1727273456013,2.93,2623.2,2622.8,3.5888]
[1727273456202,0.38127,2622.9,2622.8,3.5888]
[1727273456915,6.7428,2622.9,2622.5,3.2078]
[1727273457114,2.93,2622.9,2622.6,0.3789]
[1727273457318,3.31128,2622.9,2622.6,0.3789]
[1727273457523,3.31128,2622.9,2622.6,0.7777]
[1727273458116,2.93,2622.9,2622.6,0.7777]
[1727273458621,0.38129,2622.8,2622.6,0.7777]
[1727273459116,2.93,2622.9,2622.6,0.7777]
[1727273459318,0.38129,2622.8,2622.6,0.7777]
[1727273460120,4.1941,2622.7,2622.0,3.2078]
[1727273460307,0.38134,2622.5,2622.0,3.2078]
[1727273460514,0.38135,2622.4,2622.1,7.90060851]
[1727273460808,2.93,2622.3,2621.8,3.58923]
[1727273461013,2.93,2622.3,2621.8,3.574]
[1727273461014,3.31137,2622.3,2621.8,3.574]
[1727273461312,0.38134,2622.4,2622.0,8.0055909]
[1727273461515,0.38134,2622.4,2621.9,0.3671]
[1727273462012,2.93,2622.6,2622.0,7.92191743]
[1727273462013,0.38136,2622.3,2622.0,7.92191743]
[1727273462221,3.31136,2622.3,2622.0,7.92191743]
[1727273462613,0.38139,2622.1,2622.0,7.92191743]
[1727273462822,0.95351,2622.0,2621.3,3.2078]
[1727273463009,2.93,2621.4,2621.3,3.2078]
[1727273463319,3.31149,2621.4,2621.3,3.2078]
[1727273463785,0.38149,2621.4,2621.3,3.2078]
[1727273463920,0.3815,2621.3,2621.2,0.3783]
[1727273464122,3.3115,2621.4,2621.2,0.3783]
[1727273464433,3.31146,2621.6,2621.2,0.3783]
[1727273464618,0.38148,2621.5,2621.3,0.3995]
[1727273464916,0.3815,2621.3,2621.2,0.3783]
[1727273465122,3.3115,2621.4,2621.2,0.3783]
[1727273465320,0.3815,2621.3,2621.2,0.3783]
[1727273465513,2.93,2621.4,2620.8,0.3995]
[1727273465514,0.38152,2621.2,2620.8,0.3995]
[1727273465714,3.31154,2621.1,2620.9,0.3813]
[1727273465910,2.93,2621.1,2620.9,0.3813]
[1727273466223,0.38155,2621.0,2620.9,0.3813]
[1727273466414,2.93,2621.1,2620.7,3.2078]
[1727273466610,0.38158,2620.8,2620.7,3.2078]
[1727273466813,2.93,2620.8,2620.7,3.2078]
[1727273467015,3.31158,2620.8,2620.7,3.2078]
[1727273467241,7.12758,2620.8,2620.7,3.2078]
[1727273467719,3.31158,2620.8,2620.7,3.2078]
[1727273468022,7.12758,2620.8,2620.7,3.2078]
[1727273468215,4.19758,2620.8,2620.7,3.2078]
[1727273468414,7.12758,2620.8,2620.7,3.2078]
[1727273468819,0.38164,2620.4,2620.3,3.2078]
[1727273469035,2.93,2620.4,2620.3,3.2078]
[1727273469334,3.304,2620.7,2620.3,3.2078]
[1727273469516,3.6856,2620.7,2620.3,3.2078]
[1727273470313,3.304,2620.7,2620.3,3.2078]
[1727273470824,3.6856,2620.7,2620.3,3.2078]
[1727273471211,3.2078,2620.9,2620.3,3.2078]
[1727273471411,3.58937,2620.9,2620.3,3.2078]
[1727273471615,0.38158,2620.8,2620.3,3.2078]
[1727273471938,2.93,2620.8,2620.3,3.2078]
[1727273472325,0.38158,2620.8,2620.3,3.2078]
[1727273472519,3.58941,2620.6,2619.9,1.16249]
[1727273472720,3.58941,2620.6,2620.0,0.38169]
[1727273472936,3.2078,2620.6,2619.9,0.7808]
[1727273473224,3.2078,2620.6,2620.2,0.38166]
[1727273473434,3.31158,2620.8,2620.2,0.38166]
[1727273473729,2.93,2620.8,2620.1,0.38167]
[1727273474026,0.3816,2620.7,2620.1,0.38167]
[1727273474218,0.38161,2620.6,2620.1,0.38167]
[1727273474412,0.38161,2620.6,2620.0,3.2078]
[1727273474413,2.93,2620.6,2620.0,3.58949]
[1727273474615,3.31161,2620.6,2620.1,0.38168]
[1727273474826,6.1378,2620.6,2620.2,0.38166]
[1727273475030,2.93,2620.6,2620.0,3.2078]
[1727273475325,3.31161,2620.6,2620.1,0.38167]
[1727273475713,0.38158,2620.8,2620.0,3.2078]
[1727273475927,0.38158,2620.8,2620.4,0.38163]
[1727273476129,0.3816,2620.7,2620.5,0.4]
[1727273476925,0.9539,2621.0,2620.5,0.4]
[1727273476926,3.06880071,2621.1,2620.6,7.0238]
[1727273477118,3.2078,2621.2,2620.6,3.5814]
[1727273477313,0.38154,2621.1,2620.7,0.38159]
[1727273477718,3.31154,2621.1,2620.7,0.38159]
[1727273478121,2.93,2620.8,2620.6,0.3736]
[1727273478326,3.31159,2620.8,2620.6,0.3736]
[1727273478522,0.3816,2620.7,2620.5,0.4]
[1727273478719,0.38161,2620.6,2620.5,0.4]
[1727273478915,0.3816,2620.7,2620.5,0.4]
[1727273479228,0.38161,2620.6,2620.5,0.4]
[1727273479830,0.38161,2620.6,2620.1,0.75268]
[1727273480028,0.38161,2620.6,2620.2,0.3739]
[1727273480236,0.3816,2620.7,2620.3,0.38165]
[1727273480525,0.3816,2620.7,2620.2,0.75556]
[1727273480731,3.31159,2620.8,2620.3,0.38165]
[1727273480923,3.31159,2620.8,2620.4,0.397]
[1727273481232,0.38161,2620.6,2620.4,0.397]
[1727273481533,0.38159,2620.7,2620.4,0.397]
[1727273481730,3.31158,2620.8,2620.4,0.77863]
[1727273482029,0.3816,2620.7,2620.4,0.397]
[1727273482630,0.38161,2620.6,2620.4,0.397]
[1727273483020,0.3816,2620.7,2620.4,0.397]
[1727273483531,3.31158,2620.8,2620.4,0.77863]
[1727273483733,3.31159,2620.8,2620.4,0.77863]
[1727273483922,0.38155,2621.0,2620.6,3.2078]
[1727273484127,0.38157,2620.9,2620.7,0.744]
[1727273484327,2.93,2621.1,2620.7,0.744]
[1727273484521,0.38157,2620.9,2620.7,0.744]
[1727273484922,2.93,2621.1,2620.7,0.744]
[1727273485129,2.93,2621.1,2620.9,0.38156]
[1727273485332,2.93,2621.4,2620.7,0.744]
[1727273485630,3.58927,2621.6,2621.3,0.3815]
[1727273485824,3.2078,2621.6,2621.4,0.3924]
[1727273486624,0.38148,2621.5,2621.4,0.3924]
[1727273486825,3.58927,2621.6,2621.4,0.3924]
[1727273487021,0.38148,2621.5,2621.4,0.3924]
[1727273487822,3.58927,2621.6,2621.4,0.3924]
[1727273488128,0.38151,2621.3,2621.0,0.3912]
[1727273488430,0.3815,2621.4,2621.0,0.7836]
[1727273488627,3.31153,2621.1,2621.0,0.3924]
[1727273489230,0.38156,2621.0,2620.7,0.3678]
[1727273489423,2.93,2621.1,2620.7,0.7613]
[1727273489623,0.38155,2621.0,2620.7,0.7613]
[1727273490023,3.31154,2621.1,2620.7,1.14289]
[1727273490528,2.93,2621.1,2620.7,0.7613]
[1727273490935,3.31154,2621.1,2620.7,1.14289]
[1727273491133,3.31154,2621.1,2620.7,0.7613]
[1727273491432,0.38155,2621.0,2620.7,0.7613]
[1727273491629,2.93,2621.1,2620.7,0.7613]
[1727273491832,0.38155,2621.0,2620.7,0.7613]
[1727273492033,2.93,2621.1,2620.7,0.7613]
[1727273492233,0.38155,2621.0,2620.7,0.7613]
[1727273492935,3.31154,2621.1,2620.7,1.14289]
[1727273493439,0.38155,2621.0,2620.7,0.7613]
[1727273493835,3.31154,2621.1,2620.7,1.14289]
[1727273494326,0.38155,2621.0,2620.7,0.7613]
[1727273495128,3.31154,2621.1,2620.7,1.14289]
[1727273495329,3.31153,2621.1,2620.8,0.38157]
[1727273495728,0.38155,2621.0,2620.7,1.14288]
[1727273495935,3.31154,2621.1,2620.8,0.38157]
[1727273496130,2.93,2621.1,2620.8,0.38157]
[1727273496437,0.38155,2621.0,2620.7,0.7613]
[1727273496638,0.38155,2621.0,2620.7,1.14288]
[1727273497446,0.38155,2621.0,2620.8,0.38157]
[1727273497633,0.38155,2621.0,2620.7,1.14288]
[1727273498142,0.38156,2621.0,2620.7,1.14288]
[1727273498338,2.93,2621.1,2620.7,1.14288]
[1727273498545,1.34372,2621.2,2620.7,0.7613]
[1727273498546,3.31158,2620.8,2620.7,0.7613]
[1727273498736,3.31158,2620.8,2620.7,0.3935]
[1727273498737,4.26553,2620.8,2620.7,0.3935]
[1727273499343,2.93,2620.8,2620.7,0.3935]
[1727273499535,2.93,2620.8,2620.7,0.77509]
[1727273499739,3.58936,2621.0,2620.7,0.3935]
[1727273499941,0.38158,2620.8,2620.7,0.3935]
[1727273500445,0.38158,2620.8,2620.7,0.77509]
[1727273500446,2.38,2620.8,2620.7,0.77509]
[1727273500645,2.38,2621.2,2620.7,4.2095]
[1727273500944,0.95371,2621.5,2620.9,3.58936]
[1727273501149,0.38153,2621.2,2620.9,3.58936]
[1727273501446,0.95373,2621.4,2621.0,0.38155]
[1727273501447,0.38151,2621.3,2621.0,0.38155]
[1727273501635,2.38,2621.1,2621.0,0.38155]
[1727273502145,2.38,2621.1,2621.0,4.19675]
[1727273502845,2.76154,2621.1,2620.9,3.2078]
[1727273503046,0.38156,2621.0,2620.8,3.2078]
[1727273503241,2.38,2620.9,2620.8,3.2078]
[1727273503737,2.76156,2620.9,2620.8,3.2078]
[1727273503933,2.76156,2620.9,2620.7,0.3972]
[1727273503934,0.38158,2620.8,2620.7,0.3972]
[1727273504549,0.38161,2620.6,2620.4,0.7716]
[1727273504851,2.93,2620.5,2620.4,0.7716]
[1727273505053,2.93,2620.5,2620.2,0.3708]
[1727273505347,2.93,2620.5,2620.2,0.75246]
[1727273505547,2.93,2620.5,2620.2,0.3708]
[1727273505842,0.38164,2620.4,2620.2,0.3708]
[1727273506054,0.38165,2620.3,2620.2,0.3708]
[1727273506750,0.38164,2620.4,2620.2,0.3708]
[1727273508746,3.31163,2620.5,2620.2,0.75245]
[1727273509152,2.93,2620.5,2620.3,0.38165]
[1727273509746,8.51423531,2620.8,2620.3,3.816]
[1727273509946,2.93,2620.8,2620.3,3.2078]
[1727273510146,0.38157,2620.9,2620.6,0.3816]
[1727273510448,0.38157,2620.9,2620.7,0.38159]
[1727273510654,0.38157,2620.9,2620.6,0.3816]
[1727273510853,0.38157,2620.9,2620.7,0.38159]
[1727273511347,0.38156,2621.0,2620.6,3.2078]
[1727273511549,1.99485531,2621.1,2620.7,0.7867]
[1727273511756,5.7041561,2621.3,2620.9,0.38156]
[1727273511757,0.38153,2621.2,2620.9,0.38156]
[1727273512156,3.58931,2621.3,2621.0,0.38155]
[1727273512548,3.2078,2621.3,2621.2,0.38152]
[1727273512755,3.2078,2621.3,2620.8,1.93982062]
[1727273512756,2.93,2621.4,2621.3,0.3815]
[1727273512945,3.2078,2621.9,2621.2,3.2078]
[1727273512946,4.92485531,2621.7,2621.2,3.2078]
[1727273513145,2.93,2621.7,2621.5,0.38147]
[1727273513353,2.93,2621.7,2621.3,0.8065]
[1727273513559,3.31149,2621.4,2621.3,0.8065]
[1727273513747,2.93,2621.4,2621.3,0.8065]
[1727273513947,3.31149,2621.4,2621.3,0.8065]
[1727273514353,2.93,2621.4,2621.3,0.8065]
[1727273514767,3.31149,2621.4,2621.3,0.8065]
[1727273515147,0.38151,2621.3,2621.0,0.38155]
[1727273515359,0.38151,2621.3,2621.0,0.78375]
[1727273515564,3.31153,2621.1,2621.0,0.4022]
[1727273515958,0.38156,2620.9,2620.6,4.19367062]
[1727273516260,0.38156,2620.9,2620.6,0.3968]
[1727273516261,2.93,2620.7,2620.6,0.3968]
[1727273516460,0.38156,2620.9,2620.6,0.3968]
[1727273516764,2.93,2620.7,2620.6,0.3968]
[1727273516955,2.93,2620.7,2620.6,0.77841]
[1727273517561,2.93,2620.7,2620.6,0.3968]
[1727273518068,2.93,2620.7,2620.6,0.77841]
[1727273519162,2.93,2620.7,2620.6,0.3968]
[1727273519561,2.93,2620.7,2620.6,0.77841]
[1727273520268,2.93,2620.7,2620.6,0.3968]
[1727273520474,2.93,2620.7,2620.6,0.77841]
[1727273520669,2.93,2620.7,2620.6,0.3968]
[1727273520874,2.93,2620.7,2620.6,0.77841]
[1727273521071,0.38156,2621.0,2620.7,0.38158]
[1727273521368,0.38156,2621.0,2620.6,0.3968]
[1727273521369,0.38156,2620.9,2620.6,0.7784]
[1727273522071,0.38162,2620.5,2620.4,0.3972]
[1727273522372,2.93,2620.7,2620.3,0.38165]
[1727273522575,0.38162,2620.6,2620.3,0.38165]
[1727273523375,0.38164,2620.4,2620.2,0.3984]
[1727273523574,3.31164,2620.4,2620.2,0.3984]
[1727273523895,3.31164,2620.4,2620.1,0.3802]
[1727273523896,0.38166,2620.2,2620.1,0.3802]
[1727273524077,2.93,2620.4,2619.9,0.98587062]
[1727273524078,0.38168,2620.1,2619.9,0.98587062]
[1727273524276,3.31169,2620.0,2619.9,0.98587062]
[1727273524474,3.31169,2620.0,2619.8,0.3984]
[1727273524984,2.93,2620.0,2619.9,0.38171]
[1727273525276,3.3117,2620.0,2619.6,0.98587062]
[1727273525578,3.3117,2620.0,2619.8,0.38172]
[1727273525579,3.6775,2620.0,2619.8,0.38172]
[1727273525881,3.6775,2620.0,2619.5,0.38177]
[1727273525882,3.2958,2620.0,2619.5,0.38177]
[1727273526171,3.2958,2620.0,2619.4,1.75177062]
[1727273526172,0.38172,2619.9,2619.6,0.38175]
[1727273526386,0.3658,2620.0,2619.7,0.38173]
[1727273526387,0.7475,2620.0,2619.7,0.38173]
[1727273526566,0.3658,2620.0,2619.4,0.7659]
[1727273526771,0.7475,2620.0,2619.7,0.38173]
[1727273526973,0.3658,2620.0,2619.4,0.7659]
[1727273527176,3.31169,2620.1,2619.8,0.38172]
[1727273527366,2.93,2619.9,2619.4,0.7659]
[1727273527571,0.38173,2619.8,2619.4,0.7659]
[1727273527878,2.93,2619.9,2619.6,0.38175]
[1727273527879,3.31171,2619.9,2619.6,0.38175]
[1727273528380,0.38169,2620.1,2619.9,0.38171]
[1727273528673,6.1378,2620.2,2619.6,4.16215]
[1727273528674,3.2078,2620.2,2619.6,4.16215]
[1727273528976,3.06880071,2620.4,2620.1,0.38168]
[1727273529275,0.38164,2620.4,2620.1,0.38168]
[1727273529578,0.38164,2620.4,2620.2,0.3779]
[1727273529874,2.93,2620.5,2620.2,0.3779]
[1727273530478,0.38164,2620.4,2620.2,0.3779]
[1727273530775,6.1378,2620.5,2620.2,0.3779]
[1727273530776,0.38165,2620.3,2620.2,0.3779]
[1727273531174,6.1378,2620.5,2620.2,0.3779]
[1727273531175,0.38164,2620.4,2620.2,0.3779]
[1727273531372,1.99485531,2620.7,2620.3,0.38164]
[1727273531373,0.3816,2620.7,2620.3,0.38164]
[1727273531580,0.38161,2620.6,2620.3,0.38165]
[1727273531777,0.38161,2620.6,2620.2,3.5857]
[1727273531778,0.38163,2620.5,2620.2,3.96736]
[1727273531981,0.38163,2620.5,2620.2,0.75956]
[1727273532270,2.93,2620.4,2620.2,0.75956]
[1727273532477,2.38,2620.3,2620.2,0.75956]
[1727273535983,2.38,2620.3,2620.2,0.3779]
[1727273535984,2.76165,2620.3,2620.2,0.3779]
[1727273537689,2.38,2620.3,2620.2,0.3779]
[1727273537884,0.78175,2620.4,2620.2,0.3779]
[1727273538184,2.38,2620.3,2620.2,0.3779]
[1727273538387,2.38,2620.3,2620.2,0.75956]
[1727273538580,2.38,2620.5,2620.4,0.38163]
[1727273538776,2.38,2620.7,2620.5,0.38161]
[1727273538979,2.38,2620.7,2620.6,0.38161]
[1727273539187,1.99485531,2621.1,2620.6,6.0]
[1727273539188,5.5878,2621.1,2620.6,6.0]
[1727273539389,5.5878,2621.1,2620.9,0.38156]
[1727273539390,2.38,2621.1,2620.9,0.38156]
[1727273539687,2.38,2621.1,2621.0,0.77215]
[1727273540183,2.38,2621.7,2621.0,10.2058]
[1727273540486,2.38,2621.7,2621.3,3.2078]
[1727273540684,2.38,2621.7,2621.5,0.38147]
[1727273541088,2.38,2621.7,2621.4,0.75798]
[1727273541089,2.76145,2621.7,2621.4,0.75798]
[1727273541285,2.38,2621.7,2621.5,0.38147]
[1727273541483,2.38,2621.7,2621.4,0.3765]
[1727273541984,2.38,2621.5,2621.4,0.75798]
[1727273542481,3.5792,2622.1,2621.4,0.3765]
[1727273542482,2.93,2621.7,2621.4,0.3765]
[1727273542682,2.93,2621.7,2621.1,0.38153]
[1727273542683,0.38148,2621.5,2621.1,0.38153]
[1727273542889,2.93,2621.4,2621.1,0.38153]
[1727273543288,0.38153,2621.2,2621.0,3.5984]
[1727273543584,2.93,2621.1,2621.0,0.3906]
[1727273544783,3.31153,2621.1,2621.0,0.3906]
[1727273545275,2.93,2621.1,2621.0,0.3906]
[1727273546286,2.93,2621.1,2620.6,0.403]
[1727273546287,6.7452,2621.1,2620.6,0.403]
[1727273546493,3.31154,2621.1,2620.7,0.38159]
[1727273546686,0.38155,2621.0,2620.6,1.1499]
[1727273546988,2.93,2621.1,2620.6,0.7683]
[1727273547176,2.93,2621.1,2620.9,0.38156]
[1727273547588,2.93,2621.1,2620.6,0.7683]
[1727273547981,2.93,2621.1,2620.7,0.38158]
[1727273548185,0.38155,2621.0,2620.6,0.7683]
[1727273548485,2.93,2620.9,2620.7,0.38159]
[1727273548689,2.93,2620.9,2620.6,1.1499]
[1727273548690,3.31156,2620.9,2620.6,1.1499]
[1727273548873,3.31156,2620.9,2620.7,0.38159]
[1727273548874,2.93,2620.9,2620.7,0.38159]
[1727273549281,3.31156,2620.9,2620.7,0.38159]
[1727273550081,2.93,2621.3,2620.8,0.38157]
[1727273550386,0.38154,2621.1,2620.9,0.38156]
[1727273550803,0.38153,2621.2,2621.0,0.38154]
[1727273551090,2.93,2621.3,2620.9,0.38156]
[1727273551091,0.38153,2621.1,2620.9,0.38156]
[1727273551394,2.93,2621.3,2620.8,0.38157]
[1727273551395,0.38155,2621.0,2620.8,0.38157]
[1727273551697,2.93,2620.9,2620.6,0.7683]
[1727273551989,0.38159,2620.7,2620.6,0.7683]
[1727273552190,0.38159,2620.8,2620.6,1.14991]
[1727273552489,6.1378,2620.7,2619.9,4.19367062]
[1727273552687,6.1378,2620.7,2620.0,1.16759]
[1727273552688,2.93,2620.3,2620.0,1.16759]
[1727273553089,0.38167,2620.2,2620.0,1.16759]
[1727273553488,3.31166,2620.3,2620.1,0.38167]
[1727273553785,0.38165,2620.3,2620.1,0.38168]
[1727273554087,0.38169,2620.1,2619.9,3.5895]
[1727273554594,0.38169,2620.1,2620.0,0.38169]
[1727273554797,0.38168,2620.2,2620.0,0.38169]
[1727273555185,0.38165,2620.3,2620.1,0.38167]
[1727273555481,6.1378,2620.4,2619.9,3.2078]
[1727273555682,0.38169,2620.0,2619.9,3.2078]
[1727273555887,0.38168,2620.1,2619.9,3.2078]
[1727273556186,0.38169,2620.0,2619.9,3.2078]
[1727273556393,0.38169,2620.1,2619.9,3.5895]
[1727273556587,0.3908,2620.3,2619.9,3.5895]
[1727273556588,1.34495,2620.3,2619.9,3.5895]
[1727273557316,0.38169,2620.0,2619.9,3.2078]
[1727273557989,2.93,2620.0,2619.7,0.38173]
[1727273558384,3.3117,2620.0,2619.7,0.38173]
[1727273558579,3.3117,2620.0,2619.4,0.3773]
[1727273558895,3.3117,2620.0,2619.8,0.38172]
[1727273559090,0.38171,2619.9,2619.7,0.38173]
[1727273559391,3.3117,2620.0,2619.8,0.38172]
[1727273559703,0.95418,2620.2,2619.8,0.38171]
[1727273559992,0.95418,2620.2,2619.9,0.3817]
[1727273559993,0.38169,2620.1,2619.9,0.3817]
[1727273560191,0.38168,2620.1,2619.9,0.3817]
[1727273560493,0.38169,2620.0,2619.9,0.3817]
[1727273560694,0.38171,2619.9,2619.8,0.38172]
[1727273560896,0.95418,2620.2,2619.6,3.2078]
[1727273561090,0.3817,2620.0,2619.8,0.38171]
[1727273561293,0.38171,2619.9,2619.7,0.38173]
[1727273561600,0.38171,2619.9,2619.8,0.38172]
[1727273562290,0.3817,2620.0,2619.8,0.38172]
[1727273562591,4.78145,2620.3,2619.6,4.16217]
[1727273562793,3.5986,2620.3,2620.1,0.38167]
[1727273562989,3.58946,2620.3,2620.1,0.38167]
[1727273563291,3.58946,2620.3,2620.2,0.38166]
[1727273563812,0.38164,2620.4,2620.2,0.38166]
[1727273563999,0.38164,2620.4,2619.9,1.34987]
[1727273564000,0.38162,2620.5,2620.1,0.9542]
[1727273564200,0.95397,2620.8,2620.2,0.95417]
[1727273564201,0.38159,2620.8,2620.2,0.95417]
[1727273564386,0.74797,2620.9,2620.7,0.38158]
[1727273564598,6.1378,2621.0,2620.7,0.38158]
[1727273564599,3.31156,2621.0,2620.7,0.38158]
[1727273564893,0.38155,2621.0,2620.8,0.78657]
[1727273565089,0.3654,2621.2,2620.8,0.405]
[1727273565090,0.38155,2621.1,2620.8,0.405]
[1727273565290,0.38155,2621.1,2620.9,0.38156]
[1727273565986,0.3654,2621.2,2620.8,0.78657]
[1727273566287,0.38155,2621.0,2620.8,0.78657]
[1727273566889,0.38154,2621.1,2620.9,0.38156]
[1727273567395,0.74692,2621.2,2620.9,0.38156]
[1727273567592,6.51931,2621.3,2621.0,0.38154]
[1727273567799,1.59843605,2621.5,2620.8,0.405]
[1727273567800,0.38149,2621.5,2620.9,0.3922]
[1727273567985,3.2078,2621.6,2621.4,0.38148]
[1727273568190,0.3989,2621.7,2620.9,15.61089528]
[1727273568397,0.38144,2621.8,2621.5,0.38147]
[1727273568598,3.31142,2621.9,2621.6,0.3799]
[1727273568785,2.93,2621.9,2621.6,0.76135]
[1727273568988,0.38144,2621.8,2621.6,0.3799]
[1727273569391,3.31142,2621.9,2621.6,0.76136]
[1727273569808,3.2078,2622.0,2621.7,0.38144]
[1727273569996,3.2078,2622.0,2621.8,0.38143]
[1727273570191,3.2078,2622.0,2621.6,0.3799]
[1727273570396,3.58921,2622.0,2621.7,0.77364]